Cogmind - Beta 13 @@@ ROGUE MODE // 2024.04.10 @ 01:43:55 Player: BoomBlip Result: Destroyed by H-88 Terminator with Heavy Machine Gun Performance ------------- Evolutions (9) 4500 Regions Visited (13) 2600 Robots Destroyed (80) 400 Value Destroyed (2623) 2623 Prototype IDs (6) 120 Alien Tech Used (2) 400 Bonus (1510) 1510 TOTAL SCORE: 12153 Bonus ------- Triggered Max Security 1000 High Alert Combat Kills 29 Follower Combat Kills 243 Aligned with FarCom 300 Friendly Fire -62 Cogmind --------- Core Integrity 0/1600 Matter 204/300 Energy 100/100 System Corruption 10% Temperature Cool (1) Movement Flying (40) Location -1/Access Parts ------- > --- POWER (2) -------- (None) > --- PROPULSION (6) --- Xenon Bombardment Thruster > --- UTILITY (13) ----- (None) > --- WEAPON (4) ------- (None) > --- INVENTORY (5) ---- Armored Medium Treads High-powered Shock Rifle HERF Cannon Peak State ------------ > --- POWER ------------ Antimatter Reactor Light Quantum Reactor > --- PROPULSION ------- Flying Fortress v7 Impulse Thruster Array > --- UTILITY ---------- Advanced Heat Sink Improved Cooling System Advanced Visual Processing Unit Targeting Computer Improved Targeting Computer Improved Targeting Computer Improved Melee Analysis Suite Hardened Light Armor Plating Graphene Brace Improved System Shield > --- WEAPON ----------- High-powered Shock Rifle Core Stripper Heavy Pick > --- INVENTORY -------- Q-thruster High-powered Shock Rifle High-powered Shock Rifle Phase Gun Tesla Bomb Launcher [Rating: 140] Favorites ----------- Power Light Angular Momentum Engine Engine Light Angular Momentum Engine Power Core Micro Nuclear Core Reactor Antimatter Reactor Propulsion Wheel Treads Light Treads Leg Aluminum Leg Wheel Wheel Flight Unit Flying Fortress v7 Utility Improved Heat Sink Device Improved Heat Sink Storage Huge Storage Unit Processor Advanced Visual Processing Unit Hackware Hacking Suite Protection Hardened Medium Armor Plating Weapon Shock Rifle Energy Gun Shock Rifle Energy Cannon Neutron Cannon Ballistic Gun Heavy Assault Rifle Ballistic Cannon Hardcell Cannon Launcher Rocket Launcher Special Weapon Remote Datajack Impact Weapon Core Stripper Piercing Weapon Heavy Pick Build | -11 -10 -10 -10 -9 -8 -7 -6 -5 -4 -3 -3 -2 -1 ------- Run | Yrd Mat Min Exi Min Mat Fac Fac Fac Fac Res Qua Res Acc Slots Evolved 18 | . . . . . 4 2 2 2 2 2 . 2 2 Power 1 | . . . . . . . . . 1 . . . . Propulsion 4 | . . . . . 2 . . . . 2 . . . Utility 11 | . . . . . 2 1 2 2 1 . . 1 2 Weapon 2 | . . . . . . 1 . . . . . 1 . Parts Attached 169 | . 4 11 2 7 18 21 42 17 13 4 3 13 14 Power 27 | . 1 3 . 1 1 2 5 3 4 1 1 2 3 Engine 12 | . 1 3 . 1 1 . 3 2 1 . . . . Core 7 | . . . . . . 2 2 1 2 . . . . Reactor 8 | . . . . . . . . . 1 1 1 2 3 Propulsion 36 | . 2 2 1 . 6 8 10 . . . 1 2 4 Treads 1 | . . . . . 1 . . . . . . . . Leg 1 | . . . . . 1 . . . . . . . . Wheel 25 | . 2 2 1 . 3 8 9 . . . . . . Hover . | . . . . . . . . . . . . . . Flight 9 | . . . . . 1 . 1 . . . 1 2 4 Utility 56 | . 1 2 1 2 9 6 14 8 5 . . 5 3 Device 19 | . . . 1 . . 3 5 4 4 . . . 2 Storage 3 | . 1 1 . . 1 . . . . . . . . Processor 12 | . . 1 . . . 1 5 1 . . . 3 1 Hackware 4 | . . . . . 1 1 . . 1 . . 1 . Protection 18 | . . . . 2 7 1 4 3 . . . 1 . Artifact . | . . . . . . . . . . . . . . Weapon 50 | . . 4 . 4 2 5 13 6 4 3 1 4 4 Energy Gun 22 | . . 2 . 2 1 4 1 3 2 1 . 3 3 Energy Cannon 4 | . . . . . . . 1 2 . 1 . . . Ballistic Gun 13 | . . 1 . 1 1 1 8 1 . . . . . Ballistic Cannon 3 | . . . . . . . 1 . 1 1 . . . Launcher 5 | . . 1 . . . . 2 . 1 . . . 1 Special Weapon 1 | . . . . 1 . . . . . . . . . Impact Weapon 1 | . . . . . . . . . . . 1 . . Slashing Weapon . | . . . . . . . . . . . . . . Piercing Weapon 1 | . . . . . . . . . . . . 1 . Special Melee Weapon . | . . . . . . . . . . . . . . Unidentified Prototypes 8 | . . . 1 . 1 1 . 1 . 1 2 . 1 Corrupted Parts 3 | . . . . 1 . 1 1 . . . . . . System Corruption 7 | . . . . 4 . 1 2 . . . . . . Parts Lost 38 | . . 7 . . 1 . 16 1 1 1 1 5 5 Power 6 | . . 2 . . . . 2 . . . . 1 1 Propulsion 11 | . . 1 . . 1 . 5 . . . . 1 3 Utility 9 | . . . . . . . 4 1 . 1 . 2 1 Weapon 12 | . . 4 . . . . 5 . 1 . 1 1 . Highest Loss Streak 7 | . . 3 . . 1 . 7 1 1 1 1 5 4 To Critical Strikes . | . . . . . . . . . . . . . . Average Slot Usage (%) 81 | . 92 88 75 87 87 95 87 69 62 56 52 62 32 Engine 5 | . 13 12 14 14 9 1 5 1 . . . . . Core 1 | . . . . . . 4 . 3 1 . . . . Wheel 17 | . 6 27 28 28 25 27 19 . . . . . . Flight 1 | . . . . . . . . 5 5 4 6 7 6 Device 7 | . . . . . . 7 11 13 18 14 14 10 2 Storage 7 | . 22 19 14 14 9 7 5 . . . . . . Processor 7 | . . 4 4 . . 3 11 17 10 9 9 17 12 Hackware 3 | . . . . . 5 7 6 1 1 4 4 4 5 Protection 6 | . . . . 7 21 10 5 7 5 4 . 2 . Energy Gun 7 | . 14 10 . 7 9 14 5 4 7 9 5 2 2 Ballistic Gun 6 | . 14 8 . 8 9 7 11 1 2 . . . . Launcher 1 | . . 3 14 6 . . . . . . . . . Naked Turns 45 | . . . . . . . . . . . . . 45 Heaviest Build 119 | 13 53 88 47 57 119 115 115 50 49 49 47 58 23 Greatest Support 66 | 20 26 26 26 26 50 52 58 50 50 50 58 66 24 Greatest Overweight (x) 5 | . 2 5 4 2 4 4 3 . . . . . 1 Average Overweight (x) 1 | . . 1 1 1 2 1 2 . . . . . . Largest Inventory Capacity 25 | . 20 20 20 20 25 25 25 5 5 5 5 5 5 Average Capacity 18 | . 14 20 20 20 24 25 24 5 5 5 5 5 5 Most Carried 25 | . 6 8 11 20 25 25 25 5 5 5 5 5 5 Average Carried 15 | . 5 6 9 15 22 24 23 4 4 4 4 4 4 Final Capacity 25 | 8 20 20 20 20 25 25 5 5 5 5 5 5 5 Final Carried 25 | 6 5 7 11 19 25 25 5 5 4 4 4 4 3 Class Distribution -------------------- 22% | Scavenger-Skirmisher 21% | Scavenger-Gunner 21% | Mutant 18% | Scavenger-Mutant 8% | Scavenger-Tank 4% | Gunner 3% | Hacker-Mutant Dominant Class ---------------- Mutant | -10/Materials Mutant | -10/Mines Mutant | -10/Exiles Scavenger-Mutant | -9/Mines Scavenger-Mutant | -8/Materials Scavenger-Tank | -7/Factory Scavenger-Gunner | -6/Factory Scavenger-Gunner | -5/Factory Scavenger-Skirmisher | -4/Factory Scavenger-Skirmisher | -3/Research Scavenger-Mutant | -3/Quarantine Scavenger-Mutant | -2/Research Hacker-Mutant | -1/Access Resources | -11 -10 -10 -10 -9 -8 -7 -6 -5 -4 -3 -3 -2 -1 ----------- Run | Yrd Mat Min Exi Min Mat Fac Fac Fac Fac Res Qua Res Acc Matter Collected 2810 | 133 167 129 . 71 239 247 938 452 173 95 . 48 118 Remotely . | . . . . . . . . . . . . . . Salvage Created 4008 | . 173 238 . . 158 617 1567 501 597 135 . 22 . Parts 162 | . 6 9 . . 2 35 72 25 10 2 . 1 . Haulers Intercepted 3 | . . . . . 1 1 . . . 1 . . . Recyclers Shooed 6 | . . 1 . . . . 5 . . . . . . Parts Field Recycled . | . . . . . . . . . . . . . . Retrieved Matter . | . . . . . . . . . . . . . . Parts Self-Destructed . | . . . . . . . . . . . . . . Prevented . | . . . . . . . . . . . . . . Kills | -11 -10 -10 -10 -9 -8 -7 -6 -5 -4 -3 -3 -2 -1 ------- Run | Yrd Mat Min Exi Min Mat Fac Fac Fac Fac Res Qua Res Acc Combat Hostiles Destroyed 45 | . 4 6 . . 2 . 22 5 6 . . . . Guns 29 | . 4 5 . . 2 . 13 3 2 . . . . Cannons 12 | . . . . . . . 8 2 2 . . . . AOE 4 | . . 1 . . . . 1 . 2 . . . . Classes Destroyed 14 | . 1 . . . 1 5 6 1 . . . . . Worker 15 | . . . . . . 9 3 2 . . . 1 . Builder 3 | . . . . . . 2 . 1 . . . . . Tunneler 2 | . . . . . . 1 1 . . . . . . Hauler 3 | . . . . . 1 1 . . . 1 . . . Recycler 7 | . . . . . . 3 3 1 . . . . . Mechanic 1 | . . . . . . . . 1 . . . . . Operator 2 | . . . . . . . 1 . . 1 . . . Watcher 2 | . . . . . . 1 1 . . . . . . Swarmer 6 | . . . . . . . 2 . 4 . . . . Grunt 25 | . 4 6 . . 2 . 10 2 1 . . . . Duelist 2 | . . . . . . . 1 1 . . . . . Sentry 4 | . . . . . . . 3 1 . . . . . Hunter 2 | . . . . . . . 1 1 . . . . . Programmer 6 | . . . . . . . 5 . 1 . . . . Best Kill Streak 6 | . 2 2 . . 1 4 6 4 4 1 . 1 . Combat Bots Only 6 | . 2 2 . . 1 . 6 3 4 . . . . Max Kills in Single Turn 2 | . 1 2 . . 1 2 2 2 2 1 . 1 . Gunslinging 1 | . . 1 . . . . . . . . . . . Exploded 2 | . . 1 . . . . 1 . 2 . . . . Melee . | . . . . . . . . . . . . . . Uniques/NPCs Destroyed . | . . . . . . . . . . . . . . Combat | -11 -10 -10 -10 -9 -8 -7 -6 -5 -4 -3 -3 -2 -1 -------- Run | Yrd Mat Min Exi Min Mat Fac Fac Fac Fac Res Qua Res Acc Hostile Shots Fired 820 | . 40 58 . 2 18 19 309 24 98 8 43 62 139 Missed 312 | . 15 13 . 1 2 7 101 7 58 3 20 26 59 Damage Taken 9889 | . 327 635 . 63 359 225 3586 329 807 119 586 924 1929 Core 3224 | . 56 180 . . 14 38 594 . 94 39 159 433 1617 Absorbed by Shields . | . . . . . . . . . . . . . . Ignored by Resistances 11 | . . . . . . 11 . . . . . . . Core Remaining (%) 73 | 100 . . . 5 97 94 30 100 91 . 78 70 . Volleys Fired 196 | . 20 25 . 1 14 20 78 23 9 3 2 . 1 Largest 3 | . 2 2 . 1 2 3 3 3 3 3 3 . 2 Hottest 252 | . 60 90 . 33 79 138 152 252 213 213 229 . 111 Shots Fired 496 | . 40 43 . 1 28 60 222 60 27 9 4 . 2 Gun 409 | . 40 42 . . 28 60 182 32 15 6 3 . 1 Cannon 80 | . . . . . . . 38 28 10 3 1 . . Launcher 7 | . . 1 . 1 . . 2 . 2 . . . 1 Special . | . . . . . . . . . . . . . . Kinetic 273 | . 20 15 . . 14 20 167 21 13 3 . . . Thermal 153 | . 20 27 . . 14 10 37 31 9 3 1 . 1 Explosive 3 | . . 1 . 1 . . 1 . . . . . . Electromagnetic 67 | . . . . . . 30 17 8 5 3 3 . 1 Robot Hit Streak 21 | . 10 11 . 5 4 7 21 13 6 8 7 . . Robot Miss Streak 9 | . 3 3 . . 3 2 9 8 1 1 . . . Penetration Max 1 | . . . . . . . 1 1 . . . . . Secondary Targets 4 | . . 2 . . . . 2 . . . . . . Max Gunslinging Chain 1 | . . 1 . . . . 1 . . . . . . Shots Hit Robots 327 | . 28 34 . 1 13 30 155 37 13 8 2 6 . Core Hits 191 | . 10 14 . 2 5 20 111 15 9 4 1 . . Critical Kills 4 | . . . . . . . 3 1 . . . . . Critical Parts Destroyed 6 | . . . . . . 1 4 1 . . . . . Critical Strikes 17 | . . . . . . 1 12 3 . . 1 . . Burn 4 | . . . . . . . 3 1 . . . . . Destroy 10 | . . . . . . 1 7 2 . . . . . Corrupt 3 | . . . . . . . 2 . . . 1 . . Melee Attacks 11 | . . . . . . . . . . . 1 10 . Kinetic 4 | . . . . . . . . . . . 1 3 . Impact . | . . . . . . . . . . . . . . Slashing . | . . . . . . . . . . . . . . Piercing 7 | . . . . . . . . . . . . 7 . Sneak Attacks 2 | . . . . . . . . . . . . 2 . Combat Hostiles . | . . . . . . . . . . . . . . Follow-up Attacks 1 | . . . . . . . . . . . . 1 . Damage Inflicted 7948 | . 323 454 . 51 197 623 3685 1325 537 300 87 340 26 Guns 5098 | . 323 391 . . 197 553 2808 438 213 157 18 . . Cannons 1762 | . . . . . . . 674 779 233 76 . . . Explosions 627 | . . 63 . 51 . 34 198 108 91 67 . . 15 Melee 409 | . . . . . . . . . . . 69 340 . Ramming 52 | . . . . . . 36 5 . . . . . 11 Kinetic 4200 | . 146 127 . . 65 144 2824 250 300 76 69 199 . Thermal 2418 | . 177 264 . . 132 103 565 892 142 143 . . . Explosive 160 | . . 63 . 51 . . 46 . . . . . . Electromagnetic 977 | . . . . . . 340 245 183 95 81 18 . 15 Impact . | . . . . . . . . . . . . . . Slashing . | . . . . . . . . . . . . . . Piercing 141 | . . . . . . . . . . . . 141 . Highest Corruption 19 | . . . . 4 . 1 19 . 1 . 2 10 10 Average Corruption 5 | . . . . 4 . 1 8 . 1 . 2 5 6 Corruption Purged . | . . . . . . . . . . . . . . Corruption Blocked . | . . . . . . . . . . . . . . Effects 50 | . . . . . . 2 42 . 1 . . 2 3 Message Errors 12 | . . . . . . 1 10 . . . . . 1 Matter Fused 7 | . . . . . . . 5 . . . . 1 1 Heat Flow Errors 3 | . . . . . . . 3 . . . . . . Energy Discharges 6 | . . . . . . 1 4 . . . . 1 . Parts Rejected 1 | . . . . . . . 1 . . . . . . Parts Fused 1 | . . . . . . . 1 . . . . . . Data Loss (minor) 9 | . . . . . . . 8 . . . . . 1 Data Loss (major) 1 | . . . . . . . 1 . . . . . . Misfires 1 | . . . . . . . . . 1 . . . . Alerts 1 | . . . . . . . 1 . . . . . . Misdirections 3 | . . . . . . . 3 . . . . . . Weapon Failures 5 | . . . . . . . 5 . . . . . . Overload Shots . | . . . . . . . . . . . . . . Overflow Damage 135 | . . . . . . . 9 18 . 22 . 86 . Projectiles 18 | . . . . . . . . 18 . . . . . Explosions 31 | . . . . . . . 9 . . 22 . . . Melee 86 | . . . . . . . . . . . . 86 . Knockbacks 15 | . . . . . . . 12 . 3 . . . . Impact . | . . . . . . . . . . . . . . Kinetic 14 | . . . . . . . 11 . 3 . . . . Secondary 1 | . . . . . . . 1 . . . . . . Self-Inflicted Damage 115 | . . . . . . 48 62 . . . . . 5 Shots 4 | . . . . . . 1 3 . . . . . . Rammed 11 | . . . . . . 3 2 . . . 1 . 5 Targets Rammed 11 | . . . . . . 3 2 . . . 1 . 5 Kicked . | . . . . . . . . . . . . . . Crushed . | . . . . . . . . . . . . . . Highest Temperature 573 | . 99 215 . . 252 45 180 573 360 1 . 57 . Average Temperature 110 | . 51 57 . . 96 19 33 226 126 1 . 26 . Received Heat Transfer 1887 | . 195 348 . . 99 12 753 135 123 27 123 27 45 Effects 18 | . . . . . . . . 17 1 . . . . Shutdowns 8 | . . . . . . . . 7 1 . . . . Energy Bleed 1 | . . . . . . . . 1 . . . . . Interference 3 | . . . . . . . . 3 . . . . . Short Circuit 2 | . . . . . . . . 2 . . . . . Damage (minor) 1 | . . . . . . . . 1 . . . . . Damage (major) 3 | . . . . . . . . 3 . . . . . Siege Activations . | . . . . . . . . . . . . . . Robots Corrupted . | . . . . . . . . . . . . . . Combat Hostiles . | . . . . . . . . . . . . . . Parts Fried 2 | . . . . . . 1 . . . 1 . . . Impact Corruptions . | . . . . . . . . . . . . . . Robots Melted . | . . . . . . . . . . . . . . Combat Hostiles . | . . . . . . . . . . . . . . Parts Melted 9 | . 1 1 . . 1 . 1 4 . 1 . . . Heat Transferred 4126 | . 400 683 . . 333 207 1700 457 185 161 . . . Parts Sabotaged . | . . . . . . . . . . . . . . Parts Stolen . | . . . . . . . . . . . . . . Parts Stripped . | . . . . . . . . . . . . . . Power Chain Reactions 4 | . . . . . . 1 1 1 . 1 . . . Alert | -11 -10 -10 -10 -9 -8 -7 -6 -5 -4 -3 -3 -2 -1 ------- Run | Yrd Mat Min Exi Min Mat Fac Fac Fac Fac Res Qua Res Acc Peak Influence 1695 | . 130 169 . 57 86 135 546 350 607 302 1695 1114 679 Initial 1100 | . . 50 . . . 38 2 264 68 228 164 1100 664 Average 197 | . 65 140 . 11 26 43 114 252 300 246 1615 1102 662 Maximum Alert Level 5 | . . . . . . . 2 1 2 1 5 4 2 Low Security (%) 72 | . 100 100 . 100 100 100 77 29 44 . . . . Level 1 13 | . . . . . . . 17 70 1 100 . . . Level 2 8 | . . . . . . . 5 . 53 . . . 100 Level 3 . | . . . . . . . . . . . . 17 . Level 4 2 | . . . . . . . . . . . . 82 . Level 5 . | . . . . . . . . . . . . . . High Security . | . . . . . . . . . . . . . . Max Security 2 | . . . . . . . . . . . 99 . . Squads Dispatched 36 | . . . . . 4 3 12 6 3 . 6 . 2 Investigation 4 | . . . . . 1 . . 3 . . . . . Extermination 5 | . . . . . . 1 4 . . . . . . Reinforcement 15 | . . . . . 3 1 5 3 2 . . . 1 Assault 7 | . . . . . . . . . 1 . 6 . . Garrison 5 | . . . . . . 1 3 . . . . . 1 Intercept . | . . . . . . . . . . . . . . Searches Triggered . | . . . . . . . . . . . . . . Construction Impeded 1 | . . . . . . . 1 . . . . . . Haulers Reinforced 2 | . . . . . . . 1 1 . . . . . Active Scanning Responses . | . . . . . . . . . . . . . . Cargo Convoy Interrupts . | . . . . . . . . . . . . . . Stealth | -11 -10 -10 -10 -9 -8 -7 -6 -5 -4 -3 -3 -2 -1 --------- Run | Yrd Mat Min Exi Min Mat Fac Fac Fac Fac Res Qua Res Acc Distress Signals 9 | . . . . . . 3 2 . 1 1 1 . 1 Communications Jammed . | . . . . . . . . . . . . . . Distress Signals . | . . . . . . . . . . . . . . Times Spotted 206 | . 7 12 . 2 11 11 43 23 30 3 36 9 19 Peak Tracking Total 31 | . 3 7 . 2 3 4 6 5 11 4 31 10 16 Tactical Retreats 18 | . 1 1 . . . 1 3 . 7 1 1 1 2 Traps | -11 -10 -10 -10 -9 -8 -7 -6 -5 -4 -3 -3 -2 -1 ------- Run | Yrd Mat Min Exi Min Mat Fac Fac Fac Fac Res Qua Res Acc Traps Triggered 11 | . . . . 1 . 1 6 . . . . . 3 Indirectly . | . . . . . . . . . . . . . . Trap Hack Attempts . | . . . . . . . . . . . . . . Triggered . | . . . . . . . . . . . . . . Disarmed . | . . . . . . . . . . . . . . Reprogrammed . | . . . . . . . . . . . . . . Reused . | . . . . . . . . . . . . . . Traps Extracted . | . . . . . . . . . . . . . . Installed . | . . . . . . . . . . . . . . Triggered . | . . . . . . . . . . . . . . Machines | -11 -10 -10 -10 -9 -8 -7 -6 -5 -4 -3 -3 -2 -1 ---------- Run | Yrd Mat Min Exi Min Mat Fac Fac Fac Fac Res Qua Res Acc Machines Disabled 20 | . . . . 1 . . 7 2 9 . 1 . . Max in Single Turn 5 | . . . . 1 . . 5 2 4 . 1 . . Machines Repaired . | . . . . . . . . . . . . . . Machines Dismantled . | . . . . . . . . . . . . . . Machines Sabotaged . | . . . . . . . . . . . . . . Overloaded Fab Kills . | . . . . . . . . . . . . . . Hacking | -11 -10 -10 -10 -9 -8 -7 -6 -5 -4 -3 -3 -2 -1 --------- Run | Yrd Mat Min Exi Min Mat Fac Fac Fac Fac Res Qua Res Acc Machines Accessed 15 | . 1 . . 1 2 1 3 4 . 2 . . 1 Terminals 12 | . 1 . . . 2 1 2 4 . 1 . . 1 Fabricators . | . . . . . . . . . . . . . . Repair Stations . | . . . . . . . . . . . . . . Recycling Units . | . . . . . . . . . . . . . . Scanalyzers . | . . . . . . . . . . . . . . Garrison Access 2 | . . . . . . . 1 . . 1 . . . Total Hacks 40 | . 2 . . 1 12 2 6 10 . 4 . . 3 Successful 10 | . 1 . . 1 5 1 1 1 . . . . . Failed 30 | . 1 . . . 7 1 5 9 . 4 . . 3 Catastrophic 9 | . . . . . 2 . . 5 . 2 . . . Database Lockouts . | . . . . . . . . . . . . . . Manual 35 | . 2 . 1 . 12 2 4 10 . 1 . . 3 Terminals 34 | . 2 . . . 12 2 4 10 . 1 . . 3 Fabricators . | . . . . . . . . . . . . . . Repair Stations . | . . . . . . . . . . . . . . Recycling Units . | . . . . . . . . . . . . . . Scanalyzers . | . . . . . . . . . . . . . . Garrison Access 5 | . . . . . . . 2 . . 3 . . . Terminal Hacks 5 | . . . . 1 3 . . 1 . . . . . Open Door 1 | . . . . 1 . . . . . . . . . Branch Access Points 1 | . . . . . 1 . . . . . . . . Unreport Threat 3 | . . . . . 2 . . 1 . . . . . Fabricator Hacks . | . . . . . . . . . . . . . . Repair Station Hacks . | . . . . . . . . . . . . . . Recycling Unit Hacks . | . . . . . . . . . . . . . . Scanalyzer . | . . . . . . . . . . . . . . Garrison Access Hacks . | . . . . . . . . . . . . . . Unauthorized Hacks 5 | . 1 . . . 2 1 1 . . . . . . Terminals 5 | . 1 . . . 2 1 1 . . . . . . Botnet 5 | . 1 . . . 2 1 1 . . . . . . Fabricators . | . . . . . . . . . . . . . . Repair Stations . | . . . . . . . . . . . . . . Recycling Units . | . . . . . . . . . . . . . . Scanalyzers . | . . . . . . . . . . . . . . Garrison Access . | . . . . . . . . . . . . . . Data Cores Recovered 3 | . . . . . 1 1 . . . 1 . . . Used . | . . . . . . . . . . . . . . Hacking Detections 14 | . 1 . . . 2 1 3 4 . 2 . . 1 Full Trace Events 4 | . . . . . 1 . . 3 . . . . . Feedback Events 1 | . . . . . . . . 1 . . . . . Hackware Fried 1 | . . . . . . . . 1 . . . . . Feedback Blocked . | . . . . . . . . . . . . . . Robot Schematics Acquired . | . . . . . . . . . . . . . . Robots Built . | . . . . . . . . . . . . . . Authchips . | . . . . . . . . . . . . . . Time . | . . . . . . . . . . . . . . Total Robot Build Rating . | . . . . . . . . . . . . . . Part Schematics Acquired . | . . . . . . . . . . . . . . Parts Built . | . . . . . . . . . . . . . . Authchips . | . . . . . . . . . . . . . . Time . | . . . . . . . . . . . . . . Total Part Build Rating . | . . . . . . . . . . . . . . Parts Repaired . | . . . . . . . . . . . . . . Time . | . . . . . . . . . . . . . . Parts Recycled . | . . . . . . . . . . . . . . Recycled Matter . | . . . . . . . . . . . . . . Retrieved Matter . | . . . . . . . . . . . . . . Retrieved Components . | . . . . . . . . . . . . . . Parts Scanalyzed . | . . . . . . . . . . . . . . Part Schematics Acquired . | . . . . . . . . . . . . . . Parts Damaged . | . . . . . . . . . . . . . . Bothacking | -11 -10 -10 -10 -9 -8 -7 -6 -5 -4 -3 -3 -2 -1 ------------ Run | Yrd Mat Min Exi Min Mat Fac Fac Fac Fac Res Qua Res Acc Used RIF Installer . | . . . . . . . . . . . . . . Robots Hacked . | . . . . . . . . . . . . . . Non-combat . | . . . . . . . . . . . . . . Combat . | . . . . . . . . . . . . . . Robot Hacks Applied . | . . . . . . . . . . . . . . Relay Couplers Released 7 | . . . . . . . 7 . . . . . . Programmers 7 | . . . . . . . 7 . . . . . . Fabnet Peak Effective % . | . . . . . . . . . . . . . . Robots Rewired 1 | . . . . . . . . 1 . . . . . Allies Hacked . | . . . . . . . . . . . . . . Hacks Repelled . | . . . . . . . . . . . . . . Allies | -11 -10 -10 -10 -9 -8 -7 -6 -5 -4 -3 -3 -2 -1 -------- Run | Yrd Mat Min Exi Min Mat Fac Fac Fac Fac Res Qua Res Acc Total Allies 4 | . . . . 3 . . . 1 . . . . . Largest Group 3 | . . . . 3 2 1 . 1 . . . . . Highest-Rated Group 70 | . . . . 70 39 31 . 49 . . . . . Highest-Rated Ally 49 | . . . . 31 31 31 . 49 . . . . . Total Orders . | . . . . . . . . . . . . . . Ally Attacks 40 | . . . . 4 15 13 . 8 . . . . . Total Damage 881 | . . . . 85 250 259 . 287 . . . . . Kills 8 | . . . . 2 3 2 . 1 . . . . . Allies Corrupted . | . . . . . . . . . . . . . . Allies Melted 1 | . . . . . . . . 1 . . . . . Intel | -11 -10 -10 -10 -9 -8 -7 -6 -5 -4 -3 -3 -2 -1 ------- Run | Yrd Mat Min Exi Min Mat Fac Fac Fac Fac Res Qua Res Acc Robot Analysis Total . | . . . . . . . . . . . . . . Derelict Logs Recovered . | . . . . . . . . . . . . . . Drone Launches . | . . . . . . . . . . . . . . Drone Recoveries . | . . . . . . . . . . . . . . Exploration | -11 -10 -10 -10 -9 -8 -7 -6 -5 -4 -3 -3 -2 -1 ------------- Run | Yrd Mat Min Exi Min Mat Fac Fac Fac Fac Res Qua Res Acc Turns Passed 6336 | . 171 398 322 654 512 1092 1478 570 429 169 132 191 218 Spaces Moved 6167 | 1 67 282 302 560 340 838 976 820 717 303 255 266 440 Core 77 | . . . . . . . . . . . . . 77 Treads . | . . . . . . . . . . . . . . Legs 35 | 1 34 . . . . . . . . . . . . Wheels 3224 | . 33 282 302 560 339 838 870 . . . . . . Hover . | . . . . . . . . . . . . . . Flight 2831 | . . . . . 1 . 106 820 717 303 255 266 363 Fastest Speed 37 | 120 105 105 105 105 101 105 50 50 50 50 42 39 37 Average Speed 84 | 120 136 108 105 113 127 117 115 50 50 50 45 41 41 Slowest Speed 260 | 120 260 155 140 120 150 150 145 50 50 50 50 44 125 Overloaded Moves . | . . . . . . . . . . . . . . Propulsion Burnouts . | . . . . . . . . . . . . . . Robots Hopped 20 | . . . . . . . 1 5 3 2 4 3 2 Cave-ins Triggered . | . . . . . . . . . . . . . . Teleports 1 | . . . . . . . . . . . 1 . . Exploration Rate (%) 31 | 2 21 71 71 88 34 20 30 20 20 10 30 9 14 Regions Visited 13 Branch Regions 4 Pre-discovered Areas 1 | . . 1 . . . . . . . . . . . Known Exits Taken . | . . . . . . . . . . . . . . Unknown Exits Taken 13 | 1 1 1 1 1 1 1 1 1 1 1 1 1 . Scrap Searched 3 | . . 1 . 2 . . . . . . . . . Spaces Dug 3 | . . . . . . . . . . . . 3 . Terrain Destroyed 50 | . . 11 . 11 . 3 7 13 1 1 . 3 . Melee 3 | . . . . . . . . . . . . 3 . Projectile 6 | . . . . . . . . 4 1 1 . . . AOE 40 | . . 11 . 11 . 3 6 9 . . . . . Terrain Rammed . | . . . . . . . . . . . . . . Walls Destroyed . | . . . . . . . . . . . . . . Machines Disabled . | . . . . . . . . . . . . . . Actions | -11 -10 -10 -10 -9 -8 -7 -6 -5 -4 -3 -3 -2 -1 --------- Run | Yrd Mat Min Exi Min Mat Fac Fac Fac Fac Res Qua Res Acc Total 6847 | . 106 328 307 578 402 902 1167 924 766 312 262 325 468 Wait 136 | . 13 3 . . . . 27 47 17 . . 29 . Move 6117 | . 66 281 301 559 339 837 973 810 710 298 248 259 436 Hop 18 | . . . . . . . 1 4 3 2 3 3 2 Pick Up 58 | . . 4 1 8 14 5 10 7 1 1 1 2 4 Fast Attach 73 | . 3 2 2 2 3 7 11 11 9 1 3 7 12 Attach 41 | . 1 5 . 1 6 2 11 3 3 1 1 5 2 Detach 9 | . . . . 1 1 . . . 2 . 1 4 . Swap 56 | . . 4 . 4 9 12 20 3 1 2 . 1 . Drop 116 | . 3 1 3 2 16 16 34 12 11 4 2 6 6 Fire 196 | . 20 25 . 1 14 20 78 23 9 3 2 . 1 Melee 10 | . . . . . . . . . . . 1 9 . Ram 10 | . . . . . . 3 2 . . . . . 5 Kick . | . . . . . . . . . . . . . . Crush . | . . . . . . . . . . . . . . Escape Stasis . | . . . . . . . . . . . . . . Rewire 7 | . . 3 . . . . . 4 . . . . . Trap . | . . . . . . . . . . . . . . Miscellaneous . | . . . . . . . . . . . . . . Route ------- -11/Scrapyard -10/Materials -10/Mines (discovered 3 exits: [*Mat x2] / *Exi) -10/Exiles -9/Mines -8/Materials -7/Factory -6/Factory -5/Factory -4/Factory -3/Research -3/Quarantine -2/Research -1/Access History --------- Turn | Location | Event 1 | -11/Scrapyard | Discovered new exit (range 0) 1 | -11/Scrapyard | Entered Materials 145 | -10/Materials | Discovered new exit (range 10) 172 | -10/Materials | Entered Mines 206 | -10/Mines | Discovered new exit (range 11) 207 | -10/Mines | Learned location of Storage (-9) 211 | -10/Mines | Received a Rocket Launcher from a helpful Derelict 219 | -10/Mines | Discovered new exit (range 13) 269 | -10/Mines | Core integrity fell below 50% 303 | -10/Mines | Build established: Mutant 451 | -10/Mines | Assembled infested the area 465 | -10/Mines | Core integrity fell below 20% 491 | -10/Mines | Met 8R-AWN 500 | -10/Mines | Lost 3 parts (1p2w) 566 | -10/Mines | Discovered new exit (range 5) 570 | -10/Mines | Entered Exiles 595 | -10/Exiles | Welcomed by 8R-AWN 614 | -10/Exiles | Met EX-HEX 643 | -10/Exiles | Met EX-BIN 656 | -10/Exiles | Aligned with FarCom system 657 | -10/Exiles | Given EX-Vault access code 684 | -10/Exiles | Opened EX-Vault 690 | -10/Exiles | Found Prototype Device 690 | -10/Exiles | Identified Chronowheel 690 | -10/Exiles | Activated Chronowheel 696 | -10/Exiles | Found Prototype Flight Unit 722 | -10/Exiles | Warned to stay clear of 0b10 Research branches 757 | -10/Exiles | Met EX-DEC 883 | -10/Exiles | Discovered new exit (range 10) 892 | -10/Exiles | Left Exiles lab with Flying Fortress v7 892 | -10/Exiles | Entered Mines 895 | -9/Mines | Received a Mining Laser from a helpful Derelict 1466 | -9/Mines | Build established: Scavenger-Mutant 1474 | -9/Mines | Discovered new exit (range 6) 1488 | -9/Mines | Met a Derelict who couldn't figure out how to use a Trap Extractor 1546 | -9/Mines | Entered Materials 1546 | -8/Materials | Accompanied by 2 allies 1546 | -8/Materials | Evolved 4 slots: Propulsion x2, Utility x2 1547 | -8/Materials | Identified Flying Fortress v7 1551 | -8/Materials | Led the pair of lost Derelicts to an unsafe place 1891 | -8/Materials | Met 7R-MNS 1962 | -8/Materials | Discovered new exit (range 15) 2058 | -8/Materials | Entered Factory 2058 | -7/Factory | Accompanied by 1 ally 2058 | -7/Factory | Evolved 2 slots: Utility x1, Weapon x1 2059 | -7/Factory | Caught up to 7R-MNS 2384 | -7/Factory | Build established: Scavenger-Tank 2826 | -7/Factory | Garrison activated, responded to threat 2947 | -7/Factory | Build established: Scavenger-Skirmisher 3128 | -7/Factory | Discovered new exit (range 15) 3150 | -7/Factory | Entered another Factory area 3150 | -6/Factory | Evolved 2 slots: Utility x2 3151 | -6/Factory | Caught up to 7R-MNS 3897 | -6/Factory | Build established: Scavenger-Gunner 4301 | -6/Factory | Garrison activated, responded to threat 4386 | -6/Factory | System corruption reached 10% 4387 | -6/Factory | Core integrity fell below 50% 4427 | -6/Factory | Lost 7 parts (2p2u3w) 4591 | -6/Factory | Lost 3 parts (2n1w) 4608 | -6/Factory | Discovered new exit (range 20) 4628 | -6/Factory | Entered another Factory area 4628 | -5/Factory | Evolved 2 slots: Utility x2 4629 | -5/Factory | Caught up to 7R-MNS 4671 | -5/Factory | Noticed a derelict Sapper rigging charges 4748 | -5/Factory | Hacking Suite fried by hacking feedback 5181 | -5/Factory | Discovered new exit (range 12) 5198 | -5/Factory | Entered another Factory area 5198 | -4/Factory | Evolved 2 slots: Power x1, Utility x1 5448 | -4/Factory | First assault squad dispatched 5616 | -4/Factory | Discovered new exit (range 17) 5627 | -4/Factory | Entered Research 5627 | -3/Research | Evolved 2 slots: Propulsion x2 5636 | -3/Research | Build established: Scavenger-Skirmisher 5780 | -3/Research | Discovered new exit (range 19) 5780 | -3/Research | Spotted B-90 Cyclops 5796 | -3/Research | Entered Quarantine 5797 | -3/Quarantine | Maximum security lockdown engaged 5824 | -3/Quarantine | Found Alien Impact Weapon 5824 | -3/Quarantine | Identified Core Stripper 5840 | -3/Quarantine | Found Prototype Launcher 5881 | -3/Quarantine | Found Alien Artifact 5881 | -3/Quarantine | Identified Transdimensional Reconstructor 5881 | -3/Quarantine | Warped through subspace 5907 | -3/Quarantine | Discovered new exit (range 13) 5928 | -3/Quarantine | Entered Research 5928 | -2/Research | Evolved 2 slots: Utility x1, Weapon x1 6112 | -2/Research | System corruption reached 10% 6115 | -2/Research | Discovered new exit (range 11) 6119 | -2/Research | Entered Access 6119 | -1/Access | Evolved 2 slots: Utility x2 6137 | -1/Access | Lost 5 parts (1p1n2u1w) 6261 | -1/Access | Identified Tesla Bomb Launcher 6262 | -1/Access | Garrison activated, responded to threat 6270 | -1/Access | Released all parts (7) 6311 | -1/Access | Lost 4 parts (1p2n1u) 6313 | -1/Access | Core integrity fell below 50% 6324 | -1/Access | System corruption reached 10% 6330 | -1/Access | Core integrity fell below 20% 6337 | -1/Access | Destroyed by H-88 Terminator with Heavy Machine Gun Last Messages --------------- 06273_ Acquired Impulse Thruster Array. 06273_ K-01 Serf collects debris. 06280_ Impulse Thruster Array destroyed. 06293_ 2MZ9&BZIZJ3REAF>=2JNDVU,O0 06299_ Door malfunctions. 06309_ Slammed into S-43 Plague. 06317_ U-05 Engineer destroyed. 06319_ System corrupted: Component data lost. 06319_ S-43 Plague destroyed. 06322_ Acquired Xenon Bombardment Thruster. 06326_ C-30 ARC bursts open, deploying its payload. 06326_ B-74 Champion unfolds itself. 06326_ G-73 Enforcer unfolds itself. 06328_ Acquired 118 matter. 06329_ Slug penetrates Wall. 06329_ Penetrated by Slug. 06329_ Xenon Bombardment Thruster destroyed. 06332_ Slug penetrates Wall. 06335_ Penetrated by Slug. 06337_ Slug penetrates Wall. Map ----- +----------------------------------------------------+ | ?????????????????????????????????????????????????? | | ?????????????????????????????????????????????????? | | ?????????????????????????????????????????????????? | | ?????????????????????????????????????????????????? | | ?????????????????????????????????????????????????? | | ?????????????????????????????????????????????????? | | ?????????????????????????????????????????????????? | | ?????????????????????????????????????????????????? | | ?????????????????????????????????????????????????? | | ?????????????????????????????????????????????????? | | ?? ?????????????????????????????????????????????? | | ?? ?????????????????????????????????????????????? | | ?? ?????????????????????????????????????????????? | | ?? #????????????????????????????????????????????? | | ?? #????????????????????????????????????????????? | | ?# +????????????????????????????????????????????? | | ? #????????????????????????????????????????????? | | ?# #????????????????????????????????????????????? | | ?# #????????????????????????????????????????????? | | ?# #????????????????????????????????????????????? | | ?# #???????????????????????########?????????????? | | ?# #?????????????????????? #?????????????? | | ?# #?????????????????????? #?????????????? | | ?# #################+#+## #?????????????? | | + " s h # #?????????????? | | ?# " " sb p h @ #?????????????? | | ?# ##########+########### #?????????????? | | ?# #??????? ????????? ; ??????????? | | ## #????? ???????? # ?????????? | | #????# #???????#########?????????????? | | *#????# #?????????????????????????????? | | !%#????# #?????????????????????????????? | | #????# #?????????????????????????????? | | %[#????# #?????????????????????????????? | | =*#????# #?????????????????????????????? | | #????###########?????????????????????????????? | | ## #????????????????????????????????????????????? | | ?# #????????????????????????????????????????????? | | ?# #????????????????????????????????????????????? | | ## #????????????????????????????????????????????? | | ##############???????????????????????????????? | | # #???????????????????????????????? | | # #???????????????????????????????? | | + | #???????????????????????????????? | | # #???????????????????????????????? | | + * #???????????????????????????????? | | ##############???????????????????????????????? | | ##+##????????????????????????????????????????????? | | ????????????????????????????????????????????? | | = ??????????????????????????????????????????? | +----------------------------------------------------+ Best States ------------- Heat Dissipation 95 Energy Generation 41 Energy Capacity 415 Matter Stores 300 Matter Capacity 300 Sight Range 20 Terrain Scan Density 10 EM Shielding 3 Armor Coverage 600 Resistance: KI 20 Evasion (%) 62 Targeting Accuracy 21 Melee Accuracy 6 Target Analysis 8 Kinecelleration 40 Offensive Hacking 10 Defensive Hacking 12 Item Schematics ----------------- None Robot Schematics ------------------ None Fabricated ------------ Nothing Alien Tech Used ----------------- Core Stripper Transdimensional Reconstructor Achievements -------------- None Challenges ------------ None Game ------ Seed MassDisruptionWarhead Manual? 0 Play Time 01:15:19 Cumulative 103.0 hours Start 2024.04.10 @ 00:27:05 End 2024.04.10 @ 01:43:55 Sessions 1 Manual Loads 0 Difficulty Rogue Special Mode None Game No. 153 Rogue 141 Adventurer 10 Explorer 2 Win Type - Total 1 Types 1/0/0/0/0/0/0/0/0 Lore% 28 Gallery% 57 Achievement% 41 Wizard Run 0 Options --------- Layout 0 ASCII 0 Keyboard 0 Movement Arrows Keybinds 0 Fullscreen 1 Font 36/Smallcaps Map View 76x50 Zoom Use 0% Tactical HUD 1 Map Filters NONE Filters NONE Steam 1 RUN: 8aa0d390-95d0-45b8-8b82-613f41d212b2